bitfinex-derivatives/quotes_SOLF0:USTF0_20241227
["timestamp","ask_amount","ask_price","bid_price","bid_amount"]
[1735305037696,1.5437,190.39,190.24,3.22]
[1735305037885,13.26169376,190.37,190.24,3.22]
[1735305038087,13.26169376,190.37,190.25,13.26169376]
[1735305038795,2.6301,190.35,190.29,2.6307]
[1735305039197,2.6301,190.35,190.25,13.26169376]
[1735305039390,2.6302,190.34,190.25,13.26169376]
[1735305039591,13.26169376,190.37,190.25,13.26169376]
[1735305039885,13.26169376,190.37,190.27,2.631]
[1735305040085,13.26169376,190.34,190.24,3.22]
[1735305040297,1.5912,190.33,190.24,3.22]
[1735305040691,1.5912,190.33,190.19,7.29330667]
[1735305040892,3.1508,190.32,190.2,3.22]
[1735305041493,2.631,190.28,190.24,2.6315]
[1735305041891,2.631,190.28,190.21,3.22]
[1735305042093,2.6311,190.27,190.22,2.6316]
[1735305042298,13.26169376,190.31,190.22,2.6316]
[1735305042796,2.6311,190.28,190.22,2.6316]
[1735305043095,13.26169376,190.31,190.23,2.6316]
[1735305043292,2.6311,190.27,190.23,2.6316]
[1735305044097,13.26169376,190.31,190.21,3.22]
[1735305044796,13.26169376,190.31,190.22,2.6318]
[1735305045393,13.26169376,190.31,190.21,3.22]
[1735305045697,2.6311,190.28,190.21,3.22]
[1735305046198,2.6311,190.28,190.23,2.6316]
[1735305048100,13.26169376,190.31,190.21,3.22]
[1735305048399,1.6192,190.32,190.21,3.22]
[1735305048400,1.6192,190.32,190.22,13.26169376]
[1735305048597,4.2496,190.32,190.25,2.6314]
[1735305048797,4.2496,190.32,190.26,3.26]
[1735305049202,4.2496,190.32,190.27,2.631]
[1735305049700,4.2496,190.32,190.26,3.26]
[1735305049905,4.2496,190.32,190.28,2.6309]
[1735305050599,2.6304,190.32,190.28,2.6309]
[1735305050796,15.89179376,190.34,190.26,3.26]
[1735305052404,15.89179376,190.34,190.29,2.6307]
[1735305053008,21.74734959,190.45,190.34,2.63]
[1735305053303,1.6515,190.43,190.32,3.26]
[1735305053806,15.89109376,190.4,190.35,2.63]
[1735305054005,13.26169376,190.4,190.32,3.26]
[1735305055207,2.6296,190.38,190.33,2.6301]
[1735305055409,2.6296,190.38,190.32,3.26]
[1735305055803,13.26169376,190.4,190.32,3.26]
[1735305056015,2.6294,190.39,190.34,2.6301]
[1735305057808,2.6296,190.38,190.34,2.6301]
[1735305058417,2.6298,190.36,190.32,2.6304]
[1735305058718,13.26169376,190.37,190.25,13.26169376]
[1735305058922,13.26169376,190.37,190.26,3.26]
[1735305059316,2.6301,190.35,190.3,2.6306]
[1735305059919,2.6301,190.35,190.31,2.6305]
[1735305060619,13.26169376,190.37,190.31,2.6305]
[1735305060820,2.6299,190.36,190.31,2.6305]
[1735305061016,13.26169376,190.37,190.31,2.6305]
[1735305061419,2.6299,190.36,190.31,2.6305]
[1735305061619,13.26169376,190.37,190.29,3.26]
[1735305061919,2.6295,190.39,190.29,3.26]
[1735305062220,13.26169376,190.4,190.36,2.6298]
[1735305062618,13.26169376,190.4,190.34,3.26]
[1735305063119,14.91319376,190.43,190.34,3.26]
[1735305063424,2.6292,190.41,190.36,2.6297]
[1735305064620,2.6294,190.4,190.36,2.6297]
[1735305065123,2.6294,190.4,190.35,2.63]
[1735305065324,2.6294,190.4,190.34,3.26]
[1735305065822,2.6291,190.42,190.36,2.6297]
[1735305066024,14.91319376,190.43,190.36,2.6297]
[1735305066524,13.26169376,190.46,190.34,3.26]
[1735305066818,13.26169376,190.46,190.43,2.6288]
[1735305067026,2.6282,190.48,190.41,3.26]
[1735305067225,13.26169376,190.49,190.41,3.26]
[1735305067522,2.6278,190.51,190.41,3.26]
[1735305068123,2.6281,190.49,190.44,2.6287]
[1735305068330,2.6281,190.49,190.41,3.26]
[1735305068826,15.21052266,190.52,190.41,3.26]
[1735305069319,13.26169376,190.52,190.42,13.26169376]
[1735305069525,2.6274,190.54,190.42,13.26169376]
[1735305069722,16.38029376,190.55,190.42,13.26169376]
[1735305070225,16.38029376,190.55,190.46,2.6284]
[1735305070426,16.38029376,190.55,190.46,3.26]
[1735305070925,15.88899376,190.55,190.49,2.6279]
[1735305071122,13.26169376,190.58,190.46,3.26]
[1735305071321,13.26169376,190.58,190.46,6.5386]
[1735305071626,2.627,190.57,190.46,6.5386]
[1735305071826,55.36069728,190.6,190.46,6.5386]
[1735305072025,2.6274,190.54,190.49,2.628]
[1735305072227,13.26169376,190.54,190.47,3.26]
[1735305073322,2.6275,190.53,190.47,5.8883]
[1735305073927,13.26169376,190.54,190.47,3.26]
[1735305074227,13.26169376,190.54,190.46,3.26]
[1735305075224,2.6281,190.49,190.46,3.26]
[1735305075429,2.6281,190.49,190.43,2.6287]
[1735305075622,2.6281,190.49,190.43,5.8887]
[1735305075822,13.26169376,190.54,190.43,5.8887]
[1735305076227,2.6278,190.51,190.44,2.6287]
[1735305076423,13.26169376,190.54,190.43,3.26]
[1735305076923,13.26169376,190.54,190.43,16.52169376]
[1735305077225,1.5872,190.55,190.43,16.52169376]
[1735305077527,2.6274,190.54,190.43,16.52169376]
[1735305078030,2.6274,190.54,190.48,2.6281]
[1735305078224,2.6274,190.54,190.48,5.8681]
[1735305078423,3.1766,190.56,190.48,3.24]
[1735305078627,3.24,190.62,190.52,2.6276]
[1735305078628,68.62239104,190.6,190.52,2.6276]
[1735305079334,2.6268,190.59,190.53,2.6275]
[1735305079526,13.26169376,190.6,190.53,2.6275]
[1735305079925,2.6269,190.58,190.53,2.6275]
[1735305080126,13.26169376,190.6,190.51,2.6276]
[1735305080536,2.6271,190.57,190.51,2.6276]
[1735305080829,13.26169376,190.6,190.49,13.26169376]
[1735305081030,13.26169376,190.6,190.48,3.24]
[1735305081231,3.2472,190.59,190.48,3.24]
[1735305081537,3.2472,190.59,190.48,5.8681]
[1735305081834,3.2472,190.59,190.48,3.24]
[1735305082022,1.6439,190.58,190.51,2.6276]
[1735305082226,1.6439,190.58,190.48,3.24]
[1735305083032,2.6273,190.55,190.49,2.6279]
[1735305084035,2.6274,190.54,190.49,2.6279]
[1735305085134,2.6274,190.54,190.48,3.24]
[1735305085135,1.6439,190.58,190.48,3.24]
[1735305085335,2.6272,190.56,190.51,2.6277]
[1735305085536,2.6272,190.56,190.48,3.24]
[1735305086135,2.6272,190.56,190.5,2.6278]
[1735305086330,2.6272,190.56,190.48,3.24]
[1735305087033,2.6272,190.55,190.5,2.6279]
[1735305087537,2.6272,190.55,190.49,2.628]
[1735305089338,2.6272,190.55,190.5,2.6279]
[1735305089938,2.6272,190.55,190.51,2.6278]
[1735305090438,2.6271,190.57,190.52,2.6276]
[1735305091438,2.6271,190.56,190.52,2.6276]
[1735305092538,2.627,190.57,190.53,2.6275]
[1735305092740,3.2472,190.59,190.53,2.6275]
[1735305093136,2.627,190.57,190.53,2.6275]
[1735305093538,2.627,190.57,190.52,2.6276]
[1735305093742,3.2472,190.59,190.49,13.26169376]
[1735305094243,2.6272,190.56,190.51,2.6277]
[1735305094737,2.6273,190.55,190.51,2.6277]
[1735305095037,13.26169376,190.57,190.47,1.5447]
[1735305095243,2.6277,190.52,190.46,3.24]
[1735305096443,2.6277,190.52,190.47,2.6283]
[1735305096641,13.26169376,190.57,190.44,13.26169376]
[1735305096839,13.26169376,190.54,190.33,87.51968009]
[1735305097139,13.26169376,190.51,190.42,2.629]
[1735305097943,13.26169376,190.51,190.4,2.6291]
[1735305098247,13.26169376,190.48,190.4,5.8691]
[1735305098644,2.6286,190.45,190.4,5.8691]
[1735305098946,13.26169376,190.48,190.41,2.6291]
[1735305099344,2.6286,190.46,190.41,2.6291]
[1735305099545,13.26169376,190.48,190.4,3.24]
[1735305099739,13.26169376,190.48,190.39,2.6293]
[1735305100144,2.6289,190.43,190.39,2.6293]
[1735305100846,2.6289,190.43,190.38,2.6296]
[1735305102641,2.6287,190.45,190.4,2.6292]
[1735305102844,1.6757,190.49,190.38,13.26169376]
[1735305103847,2.6285,190.46,190.41,2.629]
[1735305104042,2.6285,190.46,190.41,5.869]
[1735305104346,2.6283,190.48,190.43,2.6287]
[1735305105644,1.6757,190.49,190.43,2.6287]
[1735305105945,2.6284,190.47,190.43,2.6287]
[1735305107445,2.6284,190.47,190.42,2.629]
[1735305107648,2.6287,190.45,190.41,3.24]
[1735305107848,13.26169376,190.48,190.41,3.24]
[1735305108245,2.6288,190.44,190.41,3.24]
[1735305108442,13.26169376,190.48,190.41,3.24]
[1735305108642,13.26169376,190.48,190.39,2.6294]
[1735305109042,2.629,190.42,190.38,3.24]
[1735305109244,13.26169376,190.45,190.36,3.24]
[1735305110149,13.26169376,190.45,190.35,3.24]
[1735305110352,2.6293,190.4,190.36,2.6298]
[1735305110741,2.6294,190.39,190.35,5.87]
[1735305111049,2.6294,190.39,190.35,3.24]
[1735305111748,2.6294,190.39,190.32,16.50169376]
[1735305112049,2.6294,190.39,190.33,3.24]
[1735305112246,2.6296,190.38,190.34,2.6301]
[1735305113548,2.6297,190.37,190.32,2.6303]
[1735305114947,2.6295,190.39,190.34,2.63]
[1735305115148,16.60249376,190.42,190.31,3.24]
[1735305115550,1.5718,190.41,190.31,3.24]
[1735305115951,2.6295,190.39,190.31,3.24]
[1735305117451,2.6295,190.39,190.34,2.63]
[1735305118454,1.5718,190.41,190.31,3.24]
[1735305118753,2.6293,190.4,190.31,3.24]
[1735305119456,2.6293,190.4,190.35,2.6299]
[1735305120156,5.9699,190.42,190.37,2.6297]
[1735305120453,5.9699,190.42,190.32,16.43189376]
[1735305120653,2.6288,190.44,190.39,2.6294]
[1735305120853,2.6288,190.44,190.36,3.24]
[1735305121054,3.24,190.46,190.36,3.24]
[1735305121258,2.6293,190.4,190.36,5.8698]
[1735305123158,3.24,190.46,190.36,5.8698]
[1735305123353,2.6292,190.41,190.36,5.8698]
[1735305123753,2.6289,190.44,190.36,3.24]
[1735305125557,2.6289,190.44,190.39,2.6293]
[1735305125758,1.5238,190.47,190.36,3.24]
[1735305126055,13.26169376,190.44,190.36,3.24]
[1735305126558,3.1501,190.43,190.34,2.6301]
[1735305128356,2.6295,190.39,190.34,2.6301]
[1735305129058,3.1501,190.43,190.32,21.32639376]
[1735305129262,2.6293,190.4,190.32,21.32639376]
[1735305129857,2.6293,190.4,190.35,2.6299]
[1735305130562,3.1501,190.43,190.35,2.6299]
[1735305130761,2.6295,190.39,190.35,2.6299]
[1735305132063,3.1501,190.43,190.32,18.08639376]
[1735305132356,3.1501,190.43,190.33,3.24]
[1735305132564,13.26169376,190.41,190.29,13.26169376]
[1735305132754,13.26169376,190.41,190.31,3.24]
[1735305133167,2.63,190.36,190.32,2.6304]
[1735305134165,2.6297,190.37,190.33,2.6302]
[1735305135565,13.26169376,190.41,190.3,3.24]
[1735305135866,2.6299,190.36,190.32,2.6304]
[1735305136063,13.26169376,190.41,190.26,18.05249376]
[1735305136268,8.49184276,190.36,190.29,11.73184276]
[1735305137068,2.6301,190.34,190.29,11.73184276]
[1735305138670,2.6301,190.34,190.31,2.6305]
[1735305140975,2.6301,190.34,190.29,11.71184276]
[1735305141177,2.6301,190.34,190.3,2.6306]
[1735305142476,2.6304,190.33,190.29,8.49184276]
[1735305144477,2.6304,190.33,190.29,11.12264276]
[1735305145076,2.6304,190.32,190.28,5.8509]
[1735305145282,8.49184276,190.34,190.27,8.49184276]
[1735305145783,2.6305,190.32,190.27,11.12284276]
[1735305145984,8.49184276,190.34,190.27,11.12284276]
[1735305146382,1.6698,190.4,190.27,2.631]
[1735305146383,2.6306,190.31,190.27,2.631]
[1735305146683,8.49184276,190.32,190.25,14.34304276]
[1735305147083,2.6307,190.3,190.26,2.6312]
[1735305147685,8.49184276,190.28,190.22,1.5544]
[1735305148583,11.12294276,190.28,190.23,2.6316]
[1735305150283,8.49184276,190.28,190.21,3.2202]
[1735305150483,11.12314276,190.26,190.19,8.49184276]
[1735305151185,11.12314276,190.26,190.21,2.6318]
[1735305151389,8.49184276,190.26,190.19,8.49184276]
[1735305151586,2.6315,190.25,190.19,8.49184276]
[1735305153490,2.6315,190.25,190.21,2.6319]
[1735305153889,11.12304276,190.26,190.21,2.6319]
[1735305155492,2.6312,190.26,190.21,2.6319]
[1735305155691,11.12304276,190.26,190.21,2.6319]
[1735305156191,11.12304276,190.26,190.22,2.6317]
[1735305156690,8.49184276,190.24,190.19,2.6321]
[1735305156882,8.49184276,190.24,190.16,13.22844276]
[1735305157291,8.49184276,190.24,190.18,2.6322]
[1735305157988,8.49184276,190.24,190.19,2.6322]
[1735305158190,8.49184276,190.2,190.07,54.66]
[1735305158387,8.49184276,190.2,190.12,8.49184276]
[1735305158791,8.49184276,190.2,190.13,2.6329]
[1735305159192,3.2119,190.25,190.13,2.6329]
[1735305159394,8.49184276,190.19,190.14,2.6329]
[1735305159693,3.2119,190.25,190.14,8.49184276]
[1735305159886,8.49184276,190.23,190.16,8.49184276]
[1735305160090,8.49184276,190.21,190.15,3.22]
[1735305160394,8.49184276,190.19,190.15,3.22]
[1735305160593,8.49184276,190.19,190.12,8.49184276]
[1735305161288,2.6325,190.17,190.12,11.12494276]
[1735305161693,8.49184276,190.17,190.12,2.6331]
[1735305162195,1.6519,190.23,190.12,2.6331]
[1735305162394,8.49184276,190.18,190.12,2.6331]
[1735305163195,2.6326,190.17,190.12,2.6331]
[1735305163495,4.8719,190.23,190.12,2.6331]
[1735305163697,8.49184276,190.16,190.12,2.6331]
[1735305163993,4.8719,190.23,190.11,8.49184276]
[1735305164190,8.49184276,190.18,190.13,2.633]
[1735305164701,2.6325,190.17,190.13,2.633]
[1735305166299,2.6327,190.16,190.12,2.6331]
[1735305166496,11.12454276,190.16,190.12,2.6331]
[1735305167197,11.12454276,190.16,190.11,2.6333]
[1735305167494,8.49184276,190.12,190.03,8.49184276]
[1735305167695,8.49184276,190.1,190.08,2.6336]
[1735305167895,1.9519777,190.22,190.09,3.18]
[1735305168200,8.49184276,190.17,190.1,11.67184276]
[1735305168394,8.49184276,190.15,190.12,2.6331]
[1735305168698,8.49184276,190.15,190.1,3.18]
[1735305169099,8.49184276,190.15,190.12,2.633]
[1735305169398,8.49184276,190.13,190.1,3.18]
[1735305169599,8.49184276,190.13,190.0,3.1648]
[1735305169893,8.49184276,190.13,190.05,8.49184276]
[1735305170093,11.12494276,190.13,190.08,2.6336]
[1735305170293,8.49184276,190.11,190.08,2.6336]
[1735305170797,8.49184276,190.11,190.07,2.6338]
[1735305171191,8.49184276,190.09,190.04,3.18]
[1735305171400,8.49184276,190.09,190.06,2.634]
[1735305172191,8.49184276,190.09,190.0,3.1648]
[1735305172402,8.49184276,190.09,190.02,8.49184276]
[1735305172603,8.49184276,190.09,190.01,3.18]
[1735305172798,8.49184276,190.09,190.02,8.49184276]
[1735305173098,2.6334,190.1,190.03,2.6343]
[1735305173399,8.42164117,190.07,190.0,6.3448]
[1735305173801,8.49184276,190.05,189.97,10.12914276]
[1735305173996,8.49184276,190.03,189.97,1.6373]
[1735305174901,8.49184276,190.03,189.96,1.5875]
[1735305175403,6.3755,190.08,189.95,11.67184276]
[1735305175404,8.49184276,190.01,189.95,11.67184276]
[1735305175600,8.49184276,190.01,189.95,8.49184276]
[1735305175899,8.49184276,189.97,189.89,8.49184276]
[1735305176205,8.49184276,189.95,189.87,29.17322669]
[1735305176503,8.49184276,189.95,189.87,37.66506945]
[1735305176798,8.49184276,189.95,189.9,2.6362]
[1735305177395,8.49184276,189.93,189.88,2.6364]
[1735305177900,8.49184276,189.93,189.87,8.49184276]
[1735305178206,11.99403196,189.97,189.84,11.99403196]
[1735305178400,2.6356,189.95,189.85,3.18]
[1735305179099,2.6354,189.96,189.89,2.6363]
[1735305179400,11.99403196,190.0,189.9,3.18]
[1735305180402,14.62893196,190.0,189.93,2.6358]
[1735305180800,4.7358,190.02,189.9,15.17403196]
[1735305181001,15.17403196,190.06,189.93,11.99403196]
[1735305181303,11.99403196,190.06,189.93,11.99403196]
[1735305181704,14.62803196,190.06,190.0,2.6347]
[1735305181897,11.99403196,190.06,189.98,3.18]
[1735305182495,3.1955,190.08,189.98,3.18]
[1735305182696,11.99403196,190.09,189.98,3.18]
[1735305182903,11.99403196,190.09,189.99,1.6668]
[1735305183103,11.99403196,190.12,189.99,13.66083196]
[1735305183305,2.6333,190.11,190.05,2.6341]
[1735305183502,3.0624,190.16,190.04,3.18]
[1735305183708,11.99403196,190.14,190.04,3.18]
[1735305183897,11.99403196,190.14,190.1,2.6334]
[1735305184703,3.0624,190.16,190.1,2.6334]
[1735305184899,3.0624,190.16,190.12,2.6331]
[1735305185205,11.99403196,190.14,190.09,3.18]
[1735305185601,11.99403196,190.17,190.09,3.18]
[1735305186196,2.6326,190.16,190.1,2.6333]
[1735305186401,11.99403196,190.17,190.09,3.18]
[1735305186608,11.99403196,190.14,190.02,3.18]
[1735305186798,2.6332,190.12,190.02,3.18]
[1735305187206,2.6333,190.11,190.05,2.6341]
[1735305187401,11.99403196,190.11,190.02,3.18]
[1735305187808,2.6335,190.1,190.04,2.6343]
[1735305188506,11.99403196,190.11,190.07,2.6338]
[1735305188710,1.5651,190.16,190.07,2.6338]
[1735305188711,11.99403196,190.14,190.07,2.6338]
[1735305189511,2.6331,190.13,190.07,2.6338]
[1735305189812,11.99403196,190.11,190.05,2.634]
[1735305190609,11.99403196,190.11,190.02,3.18]
[1735305190913,11.99403196,190.11,190.07,2.6338]
[1735305191116,11.99403196,190.11,190.02,3.18]
[1735305191416,11.99403196,190.11,190.05,2.634]
[1735305191602,11.99403196,190.11,190.02,3.18]
[1735305192008,11.99403196,190.11,190.07,2.6338]
[1735305192413,11.99403196,190.14,190.07,2.6338]
[1735305192903,14.62703196,190.14,190.09,2.6335]
[1735305193110,11.99403196,190.14,190.09,2.6335]
[1735305194014,11.99403196,190.17,190.07,3.18]
[1735305194218,11.99403196,190.2,190.08,1.5309]
[1735305194414,11.99403196,190.2,190.08,13.52493196]
[1735305194713,11.99403196,190.2,190.09,3.2363]
[1735305195414,11.99403196,190.2,190.15,2.6326]
[1735305195612,11.99403196,190.2,190.09,3.2363]
[1735305195813,11.99403196,190.17,190.05,11.99403196]
[1735305196107,11.99403196,190.14,190.07,3.18]
[1735305196313,11.99403196,190.14,190.06,3.18]
[1735305196514,2.6335,190.1,190.06,3.18]
[1735305196707,11.99403196,190.14,190.06,3.18]
[1735305197112,2.6333,190.11,190.06,3.18]
[1735305197310,11.99403196,190.14,190.06,3.18]
[1735305197916,2.6334,190.1,190.05,5.954]
[1735305198309,11.99403196,190.14,190.05,5.954]
[1735305198508,2.6333,190.11,190.06,2.634]
[1735305199122,2.6334,190.11,190.05,2.6341]
[1735305199313,11.99403196,190.14,190.05,2.6341]
[1735305199509,11.99403196,190.11,190.0,4.7672]
[1735305199819,11.99403196,190.11,190.01,3.32]
[1735305201215,11.99403196,190.11,190.05,2.6341]
[1735305202419,2.6335,190.1,190.05,2.6341]
[1735305203021,2.6334,190.1,190.05,2.6341]
[1735305204120,2.6336,190.09,190.05,2.6341]
[1735305204917,2.6332,190.12,190.01,15.31403196]
[1735305205118,11.99403196,190.14,190.01,15.31403196]
[1735305205723,2.633,190.13,190.08,2.6336]
[1735305206719,11.99403196,190.14,190.08,2.6336]
[1735305206924,11.99403196,190.14,190.07,5.9538]
[1735305207123,11.99403196,190.14,190.07,3.32]
[1735305207320,2.6333,190.12,190.07,3.32]
[1735305207521,11.99403196,190.14,190.07,3.32]
[1735305208427,2.6333,190.12,190.07,5.9538]
[1735305208926,11.99403196,190.14,190.07,3.32]
[1735305209225,2.6335,190.1,190.06,2.634]
[1735305209416,3.2577,190.13,190.03,3.32]
[1735305209619,2.6334,190.1,190.04,2.6342]
[1735305209818,2.6334,190.1,190.03,3.32]
[1735305210420,2.6334,190.1,190.06,2.634]
[1735305210823,2.6334,190.1,190.03,3.32]
[1735305211024,2.6336,190.09,190.05,2.6341]
[1735305211920,2.6334,190.11,190.05,2.6341]
[1735305212117,3.2577,190.13,190.05,2.6341]
[1735305213228,2.6336,190.09,190.05,2.6341]
[1735305213427,11.99403196,190.11,190.05,2.6341]
[1735305213834,11.99403196,190.11,190.03,3.32]
[1735305214627,11.99403196,190.11,190.07,2.6338]
[1735305215126,2.6333,190.12,190.03,3.32]
[1735305215322,2.6333,190.12,190.08,2.6337]
[1735305215930,2.6333,190.11,190.03,3.32]
[1735305216130,14.62733196,190.11,190.03,3.32]
[1735305216830,14.62733196,190.11,190.05,2.634]
[1735305217026,14.62733196,190.11,190.03,3.32]
[1735305218534,14.62733196,190.11,190.06,2.6339]
[1735305220834,14.62733196,190.11,190.07,2.6338]
[1735305221038,3.2577,190.13,190.03,3.32]
[1735305221336,5.8908,190.13,190.03,3.32]
[1735305221535,3.2577,190.13,190.03,3.32]
[1735305221724,2.6329,190.14,190.04,11.99403196]
[1735305222127,2.6329,190.14,190.07,2.6338]
[1735305222326,11.14401622,190.14,190.06,8.51111622]
[1735305223537,11.14401622,190.14,190.08,2.6337]
[1735305223834,11.14401622,190.14,190.06,8.51111622]
[1735305224337,8.51111622,190.12,190.09,2.6335]
[1735305224534,11.14431622,190.12,190.06,8.51111622]
[1735305224831,8.51111622,190.12,190.06,11.83111622]
[1735305225035,8.51111622,190.12,190.09,2.6335]
[1735305226844,8.51111622,190.12,190.1,2.6334]
[1735305228242,8.51111622,190.12,190.09,2.6335]
[1735305228637,8.51111622,190.14,190.06,11.83111622]
[1735305228942,11.14401622,190.14,190.06,11.83111622]
[1735305229241,8.51111622,190.12,190.07,3.36]
[1735305229433,8.51111622,190.12,190.09,2.6334]
[1735305229631,8.51111622,190.14,190.07,11.87111622]
[1735305230844,8.51111622,190.13,190.07,11.87111622]
[1735305232940,8.51111622,190.13,190.09,2.6334]
[1735305234552,3.2367,190.18,190.14,2.6328]
[1735305234553,5.8692,190.18,190.14,2.6328]
[1735305234846,14.38031622,190.18,190.14,2.6328]
[1735305235045,8.51111622,190.18,190.11,8.51111622]
[1735305235248,21.74734959,190.21,190.17,2.6323]
[1735305235548,30.25846581,190.21,190.17,2.6323]
[1735305235742,8.51111622,190.21,190.17,2.6323]
[1735305235947,8.51111622,190.19,190.1,3.36]
[1735305236149,8.51111622,190.15,190.1,3.36]
[1735305236349,2.6323,190.19,190.1,5.9934]
[1735305236550,8.51111622,190.14,190.1,3.36]
[1735305236744,8.51111622,190.12,190.05,3.36]
[1735305236945,8.51111622,190.1,190.05,3.36]
[1735305237152,8.51111622,190.1,190.08,2.6337]
[1735305238151,13.30247507,190.14,190.08,2.6337]
[1735305238351,13.30247507,190.14,190.06,2.6339]
[1735305239050,2.6327,190.16,190.05,3.36]
[1735305239248,13.30247507,190.14,190.05,3.36]
[1735305239648,2.633,190.13,190.05,3.36]
[1735305240454,2.633,190.13,190.09,2.6336]
[1735305241954,15.93537507,190.14,190.09,2.6336]
[1735305243253,2.6331,190.13,190.08,2.6337]
[1735305243952,2.6334,190.11,190.06,2.634]
[1735305246957,2.6335,190.1,190.06,2.634]
[1735305247147,13.30247507,190.14,190.06,2.634]
[1735305248457,13.30247507,190.14,190.01,13.30247507]
[1735305248659,3.2869,190.13,190.04,3.36]
[1735305249357,2.6336,190.1,190.05,2.634]
[1735305252259,2.6333,190.12,190.07,2.6338]
[1735305252459,13.30247507,190.14,190.04,3.36]
[1735305253559,2.6331,190.13,190.08,2.6336]
[1735305253754,2.6331,190.13,190.04,3.36]
[1735305254057,13.30247507,190.14,190.04,3.36]
[1735305254259,15.93537507,190.14,190.09,2.6335]
[1735305256156,2.633,190.13,190.04,3.36]
[1735305256357,2.633,190.13,190.08,2.6337]
[1735305256558,13.30247507,190.14,190.01,13.30247507]
[1735305256854,13.30247507,190.14,190.05,2.6341]
[1735305257055,13.30247507,190.11,190.05,2.6341]
[1735305258057,2.6337,190.08,190.04,2.6342]
[1735305259063,13.30247507,190.11,190.02,3.36]
[1735305259264,2.6339,190.07,190.03,2.6344]
[1735305259765,2.6339,190.07,190.02,2.6345]
[1735305260163,11.15136076,190.07,190.02,2.6345]
[1735305261466,11.15136076,190.07,190.03,2.6344]
[1735305262166,2.634,190.06,190.01,5.9746]
[1735305262362,8.51746076,190.07,190.01,5.9746]
[1735305262666,8.51746076,190.05,190.01,5.9746]
[1735305263359,8.51746076,190.08,190.03,2.6343]
[1735305263555,8.51746076,190.08,190.01,11.85746076]
[1735305263859,11.15126076,190.08,190.03,2.6344]
[1735305264066,8.51746076,190.1,190.03,8.51746076]
[1735305264462,11.15096076,190.1,190.05,2.6341]
[1735305264667,11.15096076,190.1,190.03,8.51746076]
[1735305264870,8.51746076,190.1,190.03,8.51746076]
[1735305265060,8.51746076,190.1,190.07,2.6338]
[1735305266968,11.15036076,190.14,190.07,3.34]
[1735305268060,8.51746076,190.12,190.07,3.34]
[1735305268661,11.15066076,190.12,190.07,3.34]
[1735305268868,11.15066076,190.12,190.08,2.6337]
[1735305269975,8.51746076,190.12,190.08,2.6337]
[1735305270775,8.51746076,190.12,190.07,3.34]
[1735305270974,8.51746076,190.12,190.09,2.6335]
[1735305272372,8.51746076,190.1,190.07,3.34]
[1735305273473,11.15096076,190.1,190.07,3.34]
[1735305278179,2.6333,190.11,190.07,3.34]
[1735305278379,2.6333,190.11,190.07,5.9738]
[1735305279474,2.6334,190.1,190.07,5.9738]
[1735305281086,11.15066076,190.12,190.08,2.6337]
[1735305281283,8.51746076,190.12,190.06,8.51746076]
[1735305283279,8.51746076,190.12,190.09,2.6335]
[1735305283586,8.51746076,190.14,190.08,8.51746076]
[1735305283785,8.51746076,190.16,190.12,2.633]
[1735305283989,8.51746076,190.16,190.1,8.51746076]
[1735305284179,10.10596076,190.18,190.11,3.34]
[1735305284490,30.26481035,190.2,190.12,8.51746076]
[1735305284986,30.26481035,190.2,190.14,8.51746076]
[1735305285186,8.51746076,190.2,190.14,8.51746076]
[1735305286386,8.51746076,190.2,190.17,2.6324]
[1735305287379,8.51746076,190.23,190.2,2.632]
[1735305287585,8.51746076,190.23,190.17,3.34]
[1735305287792,8.51746076,190.21,190.17,3.34]
[1735305287988,11.14946076,190.21,190.17,3.34]
[1735305288592,1.5222,190.24,190.12,1.6389]
[1735305288593,2.6324,190.18,190.12,12.78936076]
[1735305288782,8.51746076,190.17,190.12,2.633]